[Event "Elegant 1st Division League 2024"]
[Site "Dhaka"]
[Date "2024.07.14"]
[Round "4.12"]
[White "Saparya Ghosh"]
[Black "Islam, Obaidul Shahin"]
[Result "1-0"]
[Annotator "NA"]
[ECO "D12"]
[WhiteElo "1833"]
[BlackElo "1976"]
[PlyCount "113"]
[EventDate "2024.07.10"]
[EventType "team-tourn"]
[EventCountry "BAN"]
[SourceTitle "playchess.com"]
[Source "ChessBase"]
[SourceQuality "1"]
[TimeControl "5400+30"]

1. d4 {[%emt 0:00:57]} d5 {[%emt 0:00:38]} 2. c4 {[%emt 0:00:09]} c6 {[%emt 0:00:05]} 3. Nf3 {[%emt 0:00:20]} Nf6 {[%emt 0:00:08]} 4. e3 {[%emt 0:00:11]} Bf5 {[%emt 0:00:26]} 5. Nc3 {[%emt 0:00:23]} e6 {[%emt 0:00:06]} 6. Qb3 {[%emt 0:00:23]} Qb6 {[%emt 0:00:04]} 7. Nh4 {[%emt 0:00:12]} Bg6 {[%emt 0:01:02]} 8. Nxg6 {[%emt 0:02:04]} hxg6 {[%emt 0:00:07]} 9. Bd2 {[%emt 0:00:52] D12: Slav Defence: 3 Nf3 Nf6 4 e3 Bf5.} Nbd7 {[%emt 0:00:20]} 10. Be2 {[%emt 0:09:17]} Qxb3 {[%emt 0:06:12]} 11. axb3 {[%emt 0:00:09]} Bb4 {[%emt 0:00:23]} 12. O-O {[%emt 0:11:00]} a6 {[%emt 0:02:37]} 13. f3 {[%emt 0:06:33]} Bd6 {[%emt 0:01:08]} 14. g3 {[%emt 0:06:58]} O-O {[%emt 0:01:37]} 15. Kg2 {[%emt 0:02:35]} e5 {[%emt 0:01:59]} 16. cxd5 {[%emt 0:06:20]} exd4 {[%emt 0:03:49]} 17. exd4 {[%emt 0:02:38]} cxd5 {[%emt 0:00:43]} 18. Rfc1 {[%emt 0:06:16]} Rfe8 {[%emt 0:02:29]} 19. Bd3 {[%emt 0:01:20]} Bb4 {[%emt 0:10:22]} 20. Bf4 {[%emt 0:07:48]} Re6 {[%emt 0:11:49]} 21. Nb5 {[%emt 0:05:56]} Rb6 {[%emt 0:04:59]} 22. g4 {[%emt 0:15:54]} Rf8 {[%emt 0:02:19]} (22... Re8 $142 23. Ra4 Rxb5 24. Bxb5 Bd2 25. Bxd7 (25. Bxd2 axb5 26. Rb4 Re2+ 27. Kf1 Rxd2 $15) 25... Bxc1 26. Bxe8 (26. Bxc1 Re2+ 27. Kf1 Rc2 $11) 26... Bxf4) 23. Nc7 {[%emt 0:08:14]} (23. Nc3 $142) 23... Bd6 {[%emt 0:03:59]} (23... Rd8 $142) 24. Bxd6 {[%emt 0:01:12]} Rxd6 {[%emt 0:01:21]} 25. Ra5 {[%emt 0:01:30]} ({Vorzuziehen ist} 25. b4) 25... g5 {[%emt 0:10:01]} 26. Rc3 {[%emt 0:02:15]} (26. b4 $1 {kam in Betracht.}) 26... g6 $11 {[%emt 0:00:25]} (26... Nb8 $142) 27. b4 {[%emt 0:01:22]} Nb8 {[%emt 0:02:53]} 28. b5 {[%emt 0:00:43]} Rb6 {[%emt 0:00:27]} 29. Kg3 {[%emt 0:00:52]} Kg7 {[%emt 0:04:30]} 30. bxa6 {[%emt 0:00:23]} Nxa6 {[%emt 0:00:16]} 31. Bxa6 {[%emt 0:00:33]} bxa6 {[%emt 0:00:07]} 32. Rxa6 {[%emt 0:00:33]} Rxb2 {[%emt 0:07:07]} 33. Rcc6 {[%emt 0:00:04]} Ng8 {[%emt 0:00:23]} 34. Nxd5 {[%emt 0:00:36]} Rd2 {[%emt 0:02:06]} 35. Nc3 {[%emt 0:00:38]} Rxd4 {[%emt 0:00:53]} 36. Ne4 {[%emt 0:00:29]} Rd5 {[%emt 0:01:49]} 37. Rc7 {[%emt 0:00:38]} Rb5 {[%emt 0:04:05]} 38. Raa7 {[%emt 0:00:11]} Rd5 {[%emt 0:00:52]} 39. Nc5 {[%emt 0:00:21]} Rd6 {[%emt 0:03:12]} 40. Nd7 {[%emt 0:00:32]} Re8 {[%emt 0:03:38]} 41. Ne5 {[%emt 0:00:10]} Nh6 {[%emt 0:00:26]} 42. Nxf7 {[%emt 0:00:40]} Nxf7 {[%emt 0:00:08]} 43. Rxf7+ {[%emt 0:00:04]} Kg8 {[%emt 0:00:20]} 44. Rg7+ {[%emt 0:01:20]} Kh8 {[%emt 0:01:08]} 45. h4 {[%emt 0:00:47]} gxh4+ {[%emt 0:04:39]} 46. Kxh4 {[%emt 0:00:04]} Re5 {[%emt 0:01:46]} 47. Rgc7 {[%emt 0:00:55]} Re8 {[%emt 0:02:06]} 48. Kg5 {[%emt 0:00:17]} Kg8 {[%emt 0:01:51]} 49. Kh6 {[%emt 0:00:47]} g5+ {[%emt 0:00:34]} 50. Kxg5 {[%emt 0:00:09]} Rd5+ {[%emt 0:00:31]} 51. Kh4 {[%emt 0:00:34]} Rd3 {[%emt 0:00:18]} 52. f4 {[%emt 0:00:14]} Kh8 {[%emt 0:00:39]} 53. f5 {[%emt 0:00:24]} Rd1 {[%emt 0:00:27]} 54. Rh7+ {[%emt 0:00:12]} Kg8 {[%emt 0:00:01]} 55. Rag7+ {[%emt 0:00:45]} Kf8 {[%emt 0:00:01]} 56. Kg5 {[%emt 0:00:11]} Rd6 {[%emt 0:00:25]} 57. f6 {[%emt 0:01:13]} 1-0

[Event "Elegant 1st Division League 2024"]
[Site "Dhaka"]
[Date "2024.07.14"]
[Round "4.13"]
[White "abu, Hanif"]
[Black "Md, Eftekhar Alam"]
[Result "0-1"]
[Annotator "NA RC"]
[ECO "A37"]
[WhiteElo "2076"]
[BlackElo "2006"]
[PlyCount "126"]
[EventDate "2024.07.10"]
[EventType "team-tourn"]
[EventCountry "BAN"]
[SourceTitle "playchess.com"]
[Source "ChessBase"]
[SourceQuality "1"]
[TimeControl "5400+30"]

1. c4 {[%emt 0:03:01]} c5 {[%emt 0:01:09]} 2. Nc3 {[%emt 0:03:16]} Nc6 {[%emt 0:03:26]} 3. g3 {[%emt 0:00:07]} g6 {[%emt 0:00:15]} 4. Bg2 {[%emt 0:00:12]} Bg7 {[%emt 0:00:12]} 5. Nf3 {[%emt 0:00:11]} e6 {[%emt 0:00:27]} 6. O-O {[%emt 0:00:09]} Nge7 {[%emt 0:00:15]} 7. e3 {[%emt 0:01:06]} O-O {[%emt 0:00:27]} 8. d4 {[%emt 0:00:10]} cxd4 {[%emt 0:00:42]} 9. exd4 {[%emt 0:00:15]} d5 {[%emt 0:00:17]} 10. c5 {[%emt 0:01:47]} Nf5 {[%emt 0:05:27]} 11. Ne2 {[%emt 0:00:30]} b6 {[%emt 0:00:30]} 12. g4 {[%emt 0:00:30]} Nh4 {[%emt 1:23:23]} 13. cxb6 {[%emt 0:03:26]} Nxf3+ {[%emt 0:00:00]} 14. Bxf3 {[%emt 0:00:10]} Qxb6 {[%emt 0:00:00]} 15. Be3 {[%emt 0:00:27]} Ba6 {[%emt 0:00:00]} 16. Qd2 {[%emt 0:10:28]} Rab8 {[%emt 0:00:00]} 17. b3 {[%emt 0:00:35]} Bxe2 {[%emt 0:00:00]} 18. Bxe2 {[%emt 0:01:39]} Nxd4 {[%emt 0:00:00]} 19. Kg2 {[%emt 0:02:40]} Qb4 {[%emt 0:00:00]} 20. Qxb4 {[%emt 0:01:30]} Rxb4 {[%emt 0:00:00]} 21. Bd3 {[%emt 0:00:39]} Nb5 {[%emt 0:00:00]} 22. Rac1 {[%emt 0:00:23]} d4 {[%emt 0:00:00]} 23. Bd2 {[%emt 0:01:57]} Nc3 {[%emt 0:00:00]} 24. Bxc3 {[%emt 0:00:43]} dxc3 {[%emt 0:00:00]} 25. Bc4 {[%emt 0:00:17]} Rd8 {[%emt 0:00:00]} 26. Rfd1 {[%emt 0:00:40]} Rbb8 {[%emt 0:00:00]} 27. Kf3 {[%emt 0:00:15]} Kf8 {[%emt 0:00:00]} 28. Ke4 {[%emt 0:02:18]} Ke7 {[%emt 0:00:00]} 29. g5 {[%emt 0:00:50]} Rxd1 {[%emt 0:00:00]} 30. Rxd1 {[%emt 0:00:14]} h6 {[%emt 0:00:00]} 31. h4 {[%emt 0:01:32]} Rd8 {[%emt 0:00:00]} 32. Be2 {[%emt 0:08:35]} hxg5 {[%emt 0:00:00]} 33. hxg5 {[%emt 0:00:04]} Rc8 {[%emt 0:00:00]} 34. Bd3 {[%emt 0:02:11]} Rc5 {[%emt 0:00:00]} 35. f4 {[%emt 0:01:59]} Rc8 {[%emt 0:00:00]} 36. Rh1 {[%emt 0:02:09]} Rd8 {[%emt 0:00:00]} 37. Ke3 {[%emt 0:01:44]} Bd4+ {[%emt 0:00:00]} 38. Ke2 {[%emt 0:00:27]} Bc5 {[%emt 0:00:00]} 39. Rc1 {[%emt 0:00:20]} Bd4 {[%emt 0:00:00]} 40. Rh1 {[%emt 0:00:14]} Bb6 {[%emt 0:00:00]} 41. Rh3 {[%emt 0:03:42]} Rd4 {[%emt 0:00:00]} 42. Rf3 {[%emt 0:00:21]} Kd6 {[%emt 0:00:00]} 43. a3 {[%emt 0:04:03]} a5 {[%emt 0:00:00]} 44. Kd1 {[%emt 0:02:06]} Bc7 {[%emt 0:00:00]} 45. Ke2 {[%emt 0:02:28]} Kc6 {[%emt 0:00:00]} 46. Ke3 {[%emt 0:00:12]} Bb6 {[%emt 0:00:00]} 47. Ke2 {[%emt 0:00:14]} Bc5 {[%emt 0:00:00]} 48. a4 {[%emt 0:01:33]} Kd6 {[%emt 0:00:00]} 49. Rf1 {[%emt 0:00:26]} Kd5 {[%emt 0:18:30]} 50. Rf3 {[%emt 0:40:45]} Bd6 {[%emt 0:00:00]} 51. Ke3 {[%emt 0:00:30]} Rb4 {[%emt 0:00:00]} 52. Bc2 {[%emt 0:00:00]} Rb8 {[%emt 0:00:00]} 53. Rh3 {[%emt 0:00:00]} Kc5 {[%emt 0:02:00]} 54. Rh4 {[%emt 0:00:00]} Rb4 {[%emt 0:00:00]} 55. Be4 {[%emt 0:00:00]} Rxb3 {[%emt 0:00:00]} 56. Rh7 {[%emt 0:00:00]} Rb4 {[%emt 0:01:30]} 57. Bc2 {[%emt 0:00:00]} Rxf4 {[%emt 0:00:00]} 58. Ke2 {[%emt 0:01:00]} Kb4 {[%emt 0:00:00]} 59. Rh8 {[%emt 0:00:21]} Ka3 {[%emt 0:00:00]} 60. Rd8 {[%emt 0:00:08]} Kb2 {[%emt 0:00:00]} 61. Bxg6 {[%emt 0:00:50]} fxg6 {[%emt 0:00:00]} 62. Rxd6 {[%emt 0:00:15]} c2 {[%emt 0:00:00]} 63. Rb6+ {[%emt 0:01:20]} Rb4 {[%emt 0:00:00]} 0-1

[Event "Elegant 1st Division League 2024"]
[Site "Dhaka"]
[Date "2024.07.14"]
[Round "4.14"]
[White "Mahindrakar Indrajeet"]
[Black "Ahmed, Feroz"]
[Result "1-0"]
[Annotator "RC"]
[ECO "A45"]
[WhiteElo "2129"]
[BlackElo "2042"]
[PlyCount "65"]
[EventDate "2024.07.10"]
[EventType "team-tourn"]
[EventCountry "BAN"]
[SourceTitle "playchess.com"]
[Source "ChessBase"]
[SourceQuality "1"]
[TimeControl "5400+30"]

1. d4 {[%emt 0:00:13]} Nf6 {[%emt 0:36:36]} 2. Bg5 {[%emt 0:00:55]} Ne4 {[%emt 0:04:22]} 3. Bf4 {[%emt 0:00:24]} c5 {[%emt 0:00:04]} 4. d5 {[%emt 0:00:44]} Qb6 {[%emt 0:00:09]} 5. Nd2 {[%emt 0:01:13]} Qxb2 {[%emt 0:02:05]} 6. Nxe4 {[%emt 0:02:24]} Qb4+ {[%emt 0:00:09]} 7. c3 {[%emt 0:01:32]} Qxe4 {[%emt 0:00:21]} 8. e3 {[%emt 0:01:39]} e6 {[%emt 0:03:20]} 9. dxe6 {[%emt 0:14:24]} dxe6 {[%emt 0:04:23]} 10. Bxb8 {[%emt 0:05:43]} Rxb8 {[%emt 0:00:39]} 11. Bb5+ {[%emt 0:00:14]} Ke7 {[%emt 0:00:18]} 12. Nf3 {[%emt 0:00:36]} a6 {[%emt 0:01:33]} 13. Bd3 {[%emt 0:01:02]} Qc6 {[%emt 0:06:14]} 14. O-O {[%emt 0:02:01]} f6 {[%emt 0:07:36]} 15. Qc2 {[%emt 0:04:58]} g6 {[%emt 0:02:34]} 16. c4 {[%emt 0:13:40]} Bg7 {[%emt 0:00:25]} 17. a4 {[%emt 0:01:39]} g5 {[%emt 0:02:10]} 18. Ra3 {[%emt 0:04:51]} h5 {[%emt 0:03:16]} 19. e4 {[%emt 0:10:51]} e5 {[%emt 0:04:44]} 20. Nd2 {[%emt 0:00:24]} h4 {[%emt 0:03:39]} 21. Nb1 {[%emt 0:02:41]} h3 {[%emt 0:00:05]} 22. g3 {[%emt 0:00:51]} f5 {[%emt 0:00:41]} 23. Nc3 {[%emt 0:02:31]} f4 {[%emt 0:00:03]} 24. Nd5+ {[%emt 0:03:44]} Kf7 {[%emt 0:00:12]} 25. Rb1 {[%emt 0:01:43]} Be6 {[%emt 0:03:23]} 26. Rab3 {[%emt 0:05:01]} Rhd8 {[%emt 0:02:51]} 27. Rb6 {[%emt 0:00:27]} Qc8 {[%emt 0:00:33]} 28. Qd1 {[%emt 0:06:31]} g4 {[%emt 0:03:00]} 29. gxf4 {[%emt 0:07:29]} Bxd5 {[%emt 0:00:02]} 30. exd5 {[%emt 0:00:24]} exf4 {[%emt 0:00:31]} 31. Re6 {[%emt 0:00:20]} Bf6 {[%emt 0:10:02]} 32. Rbb6 {[%emt 0:00:35]} Bd4 {[%emt 0:00:00]} 33. Qxg4 {[%emt 0:00:54]} 1-0

[Event "Elegant 1st Division League 2024"]
[Site "Dhaka"]
[Date "2024.07.14"]
[Round "4.15"]
[White "Md, Sariatullah"]
[Black "Majumder Shrayan"]
[Result "0-1"]
[Annotator "RC"]
[ECO "A06"]
[WhiteElo "2005"]
[BlackElo "2083"]
[PlyCount "61"]
[EventDate "2024.07.10"]
[EventType "team-tourn"]
[EventCountry "BAN"]
[SourceTitle "playchess.com"]
[Source "ChessBase"]
[SourceQuality "1"]
[TimeControl "5400+30"]

1. b3 {[%emt 0:00:03]} d5 {[%emt 0:01:03]} 2. Bb2 {[%emt 0:00:05]} Nf6 {[%emt 0:03:01]} 3. e3 {[%emt 0:00:11]} Bf5 {[%emt 0:01:58]} 4. Nf3 {[%emt 0:00:26]} h6 {[%emt 0:01:30]} 5. c4 {[%emt 0:03:05]} e6 {[%emt 0:00:32]} 6. cxd5 {[%emt 0:03:01]} exd5 {[%emt 0:00:24]} 7. Be2 {[%emt 0:01:09]} Bd6 {[%emt 0:03:07]} 8. Nc3 {[%emt 0:01:32]} c6 {[%emt 0:01:38]} 9. O-O {[%emt 0:02:02]} O-O {[%emt 0:01:01]} 10. d4 {[%emt 0:01:41]} Nbd7 {[%emt 0:01:07]} 11. Rc1 {[%emt 0:02:59]} Re8 {[%emt 0:04:56]} 12. a3 {[%emt 0:01:03]} Qe7 {[%emt 0:00:55]} 13. Ra1 {[%emt 0:05:02]} Ne4 {[%emt 0:08:09]} 14. Nxe4 {[%emt 0:03:23]} Bxe4 {[%emt 0:00:17]} 15. Bd3 {[%emt 0:11:02]} f5 {[%emt 0:07:32]} 16. g3 {[%emt 0:03:51]} g5 {[%emt 0:02:47]} 17. Re1 {[%emt 0:02:08]} Qf7 {[%emt 0:03:58]} 18. b4 {[%emt 0:08:08]} Re6 {[%emt 0:19:03]} 19. Bc3 {[%emt 0:03:41]} Rf8 {[%emt 0:01:43]} 20. Rf1 {[%emt 0:02:12]} Nf6 {[%emt 0:10:16]} 21. Be2 {[%emt 0:06:14]} Ng4 {[%emt 0:09:59]} 22. h3 {[%emt 0:00:30]} Qh5 23. hxg4 fxg4 {[%emt 0:03:31]} 24. Nh4 {[%emt 0:10:30]} Bf3 {[%emt 0:13:04]} 25. Bxf3 {[%emt 0:00:53]} gxf3 {[%emt 0:00:06]} 26. Nxf3 {[%emt 0:00:12]} Rxf3 {[%emt 0:00:29]} 27. Kg2 {[%emt 0:00:35]} Ref6 {[%emt 0:00:08]} 28. Be1 {[%emt 0:00:43]} Qg4 {[%emt 0:00:42]} 29. Rh1 {[%emt 0:01:48]} Qe4 {[%emt 0:00:32]} 30. Kh2 {[%emt 0:05:59]} h5 {[%emt 0:00:32]} 31. Ra2 {[%emt 0:01:20]} 0-1

[Event "Elegant 1st Division League 2024"]
[Site "Dhaka"]
[Date "2024.07.14"]
[Round "4.16"]
[White "Md, Azmaeen Parvez Sayor"]
[Black "Noshin, Anjum"]
[Result "1-0"]
[Annotator "ChessBase"]
[ECO "D45"]
[WhiteElo "1969"]
[BlackElo "2056"]
[PlyCount "69"]
[EventDate "2024.07.10"]
[EventType "team-tourn"]
[EventCountry "BAN"]
[SourceTitle "playchess.com"]
[Source "ChessBase"]
[SourceQuality "1"]
[TimeControl "5400+30"]

1. d4 {[%emt 0:00:03]} d5 {[%emt 0:01:00]} 2. c4 {[%emt 0:00:05]} c6 {[%emt 0:00:34]} 3. Nc3 {[%emt 0:00:06]} Nf6 {[%emt 0:00:09]} 4. e3 {[%emt 0:00:07]} e6 {[%emt 0:00:14]} 5. Nf3 {[%emt 0:00:06]} Nbd7 {[%emt 0:00:06]} 6. Be2 {[%emt 0:00:07]} Bd6 {[%emt 0:00:19]} 7. b3 {[%emt 0:00:18]} O-O {[%emt 0:00:43]} 8. O-O {[%emt 0:00:12]} b6 {[%emt 0:00:29]} 9. Bb2 {[%emt 0:00:16]} Bb7 {[%emt 0:00:14]} 10. Bd3 {[%emt 0:00:20]} Rc8 {[%emt 0:00:43]} 11. Rc1 {[%emt 0:01:45]} Re8 {[%emt 0:06:33]} 12. Re1 {[%emt 0:00:19]} Bb8 {[%emt 0:04:53]} 13. Rc2 {[%emt 0:07:34]} c5 {[%emt 0:10:52]} 14. cxd5 {[%emt 0:00:40]} exd5 {[%emt 0:04:55]} 15. Bf5 {[%emt 0:04:36]} g6 {[%emt 0:03:32]} 16. Bh3 {[%emt 0:01:47]} c4 {[%emt 0:04:06]} 17. bxc4 {[%emt 0:11:08]} Rc7 {[%emt 0:59:38]} 18. c5 Rxc5 {[%emt 0:00:00]} 19. Nd2 {[%emt 0:04:00]} Rc6 {[%emt 0:00:00]} 20. g3 {[%emt 0:11:08]} Ne4 {[%emt 0:00:00]} 21. Ndxe4 {[%emt 0:04:49]} dxe4 {[%emt 0:00:00]} 22. Bf1 {[%emt 0:06:16]} a6 {[%emt 0:00:00]} 23. Bg2 {[%emt 0:01:29]} Rc8 {[%emt 0:00:00]} 24. f3 {[%emt 0:05:13]} exf3 {[%emt 0:00:00]} 25. Bxf3 {[%emt 0:00:32]} Bxf3 {[%emt 0:00:00]} 26. Qxf3 {[%emt 0:00:10]} f5 {[%emt 0:00:00]} 27. Rf2 {[%emt 0:04:40]} Nf6 {[%emt 0:00:00]} 28. e4 {[%emt 0:03:03]} Rc4 {[%emt 0:00:00]} 29. Rd2 {[%emt 0:08:33]} Rxd4 {[%emt 0:04:39]} 30. Nd5 {[%emt 0:00:36]} Rxd2 {[%emt 0:00:18]} 31. Nxf6+ {[%emt 0:00:05]} Kf7 {[%emt 0:01:18]} 32. Qb3+ {[%emt 0:00:45]} Re6 {[%emt 0:00:42]} 33. exf5 {[%emt 0:00:13]} Rxb2 {[%emt 0:00:30]} 34. fxe6+ {[%emt 0:00:50]} Kxf6 {[%emt 0:00:11]} 35. Qxb2+ {[%emt 0:00:06]} 1-0

[Event "Elegant 1st Division League 2024"]
[Site "Dhaka"]
[Date "2024.07.14"]
[Round "4.17"]
[White "Uddipan Roy"]
[Black "Sajib, Das"]
[Result "1-0"]
[Annotator "RC"]
[ECO "B53"]
[WhiteElo "1967"]
[BlackElo "1894"]
[PlyCount "61"]
[EventDate "2024.07.10"]
[EventType "team-tourn"]
[EventCountry "BAN"]
[SourceTitle "playchess.com"]
[Source "ChessBase"]
[SourceQuality "1"]
[TimeControl "5400+30"]

1. e4 {[%emt 0:00:02]} c5 {[%emt 0:08:09]} 2. Nf3 {[%emt 0:00:07]} d6 {[%emt 0:00:08]} 3. d4 {[%emt 0:00:05]} cxd4 {[%emt 0:00:02]} 4. Qxd4 {[%emt 0:00:06]} Nc6 {[%emt 0:00:15]} 5. Qe3 {[%emt 0:00:06]} Nf6 {[%emt 0:00:15]} 6. Be2 {[%emt 0:00:06]} e6 {[%emt 0:00:16]} 7. O-O {[%emt 0:00:08]} Be7 {[%emt 0:00:09]} 8. c4 {[%emt 0:00:04]} Qc7 {[%emt 0:00:45]} 9. Nc3 {[%emt 0:00:06]} O-O {[%emt 0:00:22]} 10. b3 {[%emt 0:00:04]} b6 {[%emt 0:00:33]} 11. Bb2 {[%emt 0:00:05]} Bb7 {[%emt 0:00:11]} 12. Rac1 {[%emt 0:00:05]} Rac8 {[%emt 0:01:01]} 13. Rfd1 {[%emt 0:05:37]} Rfd8 {[%emt 0:00:12]} 14. Nd5 {[%emt 0:05:57]} exd5 {[%emt 0:05:51]} 15. cxd5 {[%emt 0:00:11]} Qb8 {[%emt 0:04:46]} 16. dxc6 {[%emt 0:00:55]} Bxc6 {[%emt 0:03:39]} 17. Nd4 {[%emt 0:05:52]} Bd7 {[%emt 0:10:38]} 18. h3 {[%emt 0:35:51]} Rxc1 {[%emt 0:06:40]} 19. Rxc1 {[%emt 0:00:16]} Rc8 {[%emt 0:01:02]} 20. Rd1 {[%emt 0:03:23]} Re8 {[%emt 0:11:42]} 21. Bb5 {[%emt 0:17:03]} Bf8 {[%emt 0:08:36]} 22. Bxd7 {[%emt 0:01:05]} Nxd7 {[%emt 0:04:14]} 23. Nf5 {[%emt 0:01:50]} Ne5 {[%emt 0:01:37]} 24. Qd4 {[%emt 0:01:35]} Re6 {[%emt 0:07:18]} 25. Ba3 {[%emt 0:10:16]} Rg6 {[%emt 0:02:12]} 26. Kh1 {[%emt 0:00:15]} Nc6 {[%emt 0:04:02]} 27. Qd5 {[%emt 0:03:23]} Ne7 {[%emt 0:09:55]} 28. Bxd6 {[%emt 0:02:17]} Qe8 {[%emt 0:04:59]} 29. Bxe7 {[%emt 0:00:11]} Bxe7 {[%emt 0:00:20]} 30. Nxe7+ {[%emt 0:00:07]} Qxe7 {[%emt 0:00:08]} 31. Qa8+ {[%emt 0:00:03]} 1-0

[Event "Elegant 1st Division League 2024"]
[Site "Dhaka"]
[Date "2024.07.14"]
[Round "4.18"]
[White "Mohammad, Shakil"]
[Black "Abdul, Momin"]
[Result "1/2-1/2"]
[Annotator "RC"]
[ECO "E11"]
[WhiteElo "1882"]
[BlackElo "1911"]
[PlyCount "79"]
[EventDate "2024.07.10"]
[EventType "team-tourn"]
[EventCountry "BAN"]
[SourceTitle "playchess.com"]
[Source "ChessBase"]
[SourceQuality "1"]
[TimeControl "5400+30"]

1. d4 {[%emt 0:01:04]} Nf6 {[%emt 0:19:50]} 2. Nf3 {[%emt 0:00:08]} e6 {[%emt 0:00:04]} 3. c4 {[%emt 0:00:19]} Bb4+ {[%emt 0:01:18]} 4. Bd2 {[%emt 0:00:13]} Bxd2+ {[%emt 0:00:13]} 5. Nbxd2 {[%emt 0:00:51]} d5 {[%emt 0:00:02]} 6. g3 {[%emt 0:00:28]} b6 {[%emt 0:00:33]} 7. cxd5 {[%emt 0:05:22]} exd5 {[%emt 0:00:04]} 8. Bg2 {[%emt 0:01:48]} O-O {[%emt 0:00:21]} 9. O-O {[%emt 0:00:19]} Nbd7 {[%emt 0:00:31]} 10. b4 {[%emt 0:05:19]} Bb7 {[%emt 0:04:34]} 11. b5 {[%emt 0:03:45]} c5 {[%emt 0:02:23]} 12. bxc6 {[%emt 0:03:37]} Bxc6 {[%emt 0:00:02]} 13. Qb3 {[%emt 0:01:14]} Qe7 {[%emt 0:00:34]} 14. Rfc1 {[%emt 0:00:59]} Rfc8 {[%emt 0:00:45]} 15. e3 {[%emt 0:00:29]} Bb7 {[%emt 0:04:25]} 16. a4 {[%emt 0:03:59]} Ne4 {[%emt 0:00:30]} 17. a5 {[%emt 0:03:24]} Nxd2 {[%emt 0:21:07]} 18. Nxd2 {[%emt 0:00:03]} Qd6 {[%emt 0:00:14]} 19. Bh3 {[%emt 0:06:45]} Rxc1+ {[%emt 0:01:25]} 20. Rxc1 {[%emt 0:00:03]} Nf6 {[%emt 0:01:03]} 21. axb6 {[%emt 0:01:32]} Qxb6 {[%emt 0:06:44]} 22. Qxb6 {[%emt 0:04:06]} axb6 {[%emt 0:00:02]} 23. Rb1 {[%emt 0:00:26]} Bc8 {[%emt 0:05:10]} 24. Bxc8 {[%emt 0:01:49]} Rxc8 {[%emt 0:00:02]} 25. Rxb6 {[%emt 0:00:12]} h6 {[%emt 0:00:35]} 26. Rb2 {[%emt 0:01:14]} g5 {[%emt 0:01:49]} 27. h3 {[%emt 0:01:19]} h5 {[%emt 0:00:37]} 28. Nf3 {[%emt 0:01:47]} Ne4 {[%emt 0:00:47]} 29. Kg2 {[%emt 0:07:55]} f6 {[%emt 0:02:20]} 30. Ne1 {[%emt 0:07:49]} Kf7 {[%emt 0:02:37]} 31. f3 {[%emt 0:05:13]} Nd6 {[%emt 0:00:38]} 32. Kf2 {[%emt 0:00:31]} Rc3 {[%emt 0:00:42]} 33. Rc2 {[%emt 0:01:41]} Rb3 {[%emt 0:01:53]} 34. Ng2 {[%emt 0:01:00]} Nf5 {[%emt 0:02:50]} 35. Re2 {[%emt 0:04:28]} Rb1 {[%emt 0:01:04]} 36. h4 {[%emt 0:02:28]} Rh1 {[%emt 0:02:06]} 37. e4 {[%emt 0:09:28]} dxe4 {[%emt 0:01:13]} 38. Rxe4 {[%emt 0:00:28]} Ra1 {[%emt 0:02:38]} 39. hxg5 {[%emt 0:05:21]} fxg5 {[%emt 0:00:48]} 40. g4 {[%emt 0:02:28]} 1/2-1/2

[Event "Elegant 1st Division League 2024"]
[Site "Dhaka"]
[Date "2024.07.14"]
[Round "4.19"]
[White "Bivor Adak"]
[Black "Mohammed, Shaker Ullah"]
[Result "*"]
[Annotator "NA RC"]
[ECO "B76"]
[WhiteElo "1967"]
[BlackElo "2018"]
[PlyCount "83"]
[EventDate "2024.07.10"]
[EventType "team-tourn"]
[EventCountry "BAN"]
[SourceTitle "playchess.com"]
[Source "ChessBase"]
[SourceQuality "1"]
[TimeControl "5400+30"]

1. e4 {[%emt 0:00:47]} c5 {[%emt 0:07:00]} 2. Nf3 {[%emt 0:00:34]} d6 {[%emt 0:02:30]} 3. d4 {[%emt 0:00:56]} cxd4 {[%emt 0:00:08]} 4. Nxd4 {[%emt 0:00:09]} Nf6 {[%emt 0:00:18]} 5. Nc3 {[%emt 0:00:32]} g6 {[%emt 0:00:59]} 6. Be3 {[%emt 0:01:44]} Bg7 {[%emt 0:00:13]} 7. f3 {[%emt 0:00:33]} O-O {[%emt 0:00:12]} 8. Qd2 {[%emt 0:01:34]} Nc6 {[%emt 0:00:17]} 9. O-O-O {[%emt 0:00:38]} Bd7 {[%emt 0:00:34]} 10. g4 {[%emt 0:06:08]} Rc8 {[%emt 0:03:04]} 11. Kb1 {[%emt 0:03:11]} Ne5 {[%emt 0:02:37]} 12. h4 {[%emt 0:00:47]} Nc4 {[%emt 0:04:17] B76: Sicilian Dragon: Yugoslav Attack, 9 g4 and 9 0-0-0.} 13. Bxc4 {[%emt 0:00:23]} Rxc4 {[%emt 0:00:07]} 14. h5 {[%emt 0:00:10]} b5 {[%emt 0:12:17]} 15. hxg6 {[%emt 0:02:26]} ({Less strong is} 15. Ndxb5 Bxb5 16. Nxb5 Qb8 $16) 15... fxg6 {[%emt 0:02:02] [#]} 16. Bh6 $2 {[%emt 0:02:41]} ({Much less strong is} 16. Ndxb5 $6 Bxb5 17. Nxb5 Qd7 $18) ({Don't take} 16. Ncxb5 $6 Qb8 $16) (16. e5 $1 $18 dxe5 17. Ne6 (17. Ndxb5 e6 $18) 17... Bxe6 18. Qxd8 Rxd8 19. Rxd8+ Kf7 20. g5 (20. Bxa7 b4 $18) (20. Nxb5 a6 $18)) 16... Bxh6 {[%emt 0:11:18]} 17. Qxh6 {[%emt 0:00:09]} Rf7 {[%emt 0:15:20]} 18. Nd5 {[%emt 0:09:56]} Nxd5 {[%emt 0:00:50]} 19. exd5 {[%emt 0:00:08]} Qb6 {[%emt 0:01:48]} 20. Ne6 {[%emt 0:03:13]} Bxe6 {[%emt 0:04:00]} 21. dxe6 {[%emt 0:00:20]} Rg7 {[%emt 0:00:17]} 22. Qd2 {[%emt 0:00:00]} a5 {[%emt 0:01:55]} 23. f4 {[%emt 0:00:00]} a4 {[%emt 0:02:11]} 24. f5 {[%emt 0:00:00]} Rc8 {[%emt 0:06:21]} 25. Qh2 {[%emt 0:00:00]} Rf8 {[%emt 0:00:56]} 26. fxg6 {[%emt 0:00:00]} Rf2 {[%emt 0:00:44]} 27. gxh7+ {[%emt 0:00:00]} Kh8 {[%emt 0:00:21]} 28. Qh6 {[%emt 0:00:00]} Rxg4 {[%emt 0:01:12] [#]} 29. Rdf1 $1 {[%emt 0:00:00]} Rxf1+ {[%emt 0:04:15]} 30. Rxf1 {[%emt 0:00:00]} Rg1 {[%emt 0:00:12]} 31. Qf8+ {[%emt 0:00:00]} Kxh7 {[%emt 0:00:05]} 32. Qxe7+ {[%emt 0:00:00]} Kg8 {[%emt 0:03:31]} 33. Qf7+ {[%emt 0:00:00]} Kh8 {[%emt 0:00:18]} 34. e7 {[%emt 0:00:00]} Rxf1+ {[%emt 0:00:32]} 35. Qxf1 {[%emt 0:00:00]} Qe3 {[%emt 0:00:10]} 36. Qf8+ {[%emt 0:00:00]} Kh7 {[%emt 0:00:07]} 37. Qf7+ {[%emt 0:08:00]} (37. e8=B $2 Qe1#) 37... Kh6 {[%emt 0:00:59]} 38. a3 {[%emt 0:00:00]} Qe1+ {[%emt 0:01:07]} 39. Ka2 {[%emt 0:00:00]} b4 {[%emt 0:00:12]} 40. e8=Q {[%emt 0:00:00]} b3+ {[%emt 0:15:14]} 41. cxb3 {[%emt 0:00:00]} axb3+ {[%emt 0:00:09]} 42. Kxb3 {[%emt 0:00:00]} *